[Event "Titled Tuesday Blitz March 07 Late 2023"]
[White "Fernandez Siles, Luis"]
[Black "Mendez Fortes, Eduardo Jesus"]
[WhiteFideId "2209420"]
[BlackFideId "3502376"]
[WhiteElo "2186"]
[BlackElo "2307"]
[Result "0-1"]
[Round "04"]
[TimeControl "180+2"]
[Date "2023.03.07"]
[WhiteClock "0:00:16"]
[BlackClock "0:02:12"]

1. d4 {[%clk 0:03:00]}  Nf6 {[%clk 0:02:59]} 2. c4 {[%clk 0:03:00]}  e6 {[%clk 0:03:00]} 3. Nc3 {[%clk 0:03:00]}  Bb4 {[%clk 0:03:00]} 4. e3 {[%clk 0:03:00]}  O-O {[%clk 0:03:00]} 5. Ne2 {[%clk 0:03:00]}  d5 {[%clk 0:02:59]} 6. a3 {[%clk 0:03:00]}  Be7 {[%clk 0:02:56]} 7. cxd5 {[%clk 0:02:58]}  exd5 {[%clk 0:02:56]} 8. g3 {[%clk 0:02:59]}  c6 {[%clk 0:02:56]} 9. Bg2 {[%clk 0:02:59]}  Bf5 {[%clk 0:02:56]} 10. O-O {[%clk 0:02:57]}  Nbd7 {[%clk 0:02:56]} 11. f3 {[%clk 0:02:56]}  Nb6 {[%clk 0:02:54]} 12. e4 {[%clk 0:02:53]}  dxe4 {[%clk 0:02:55]} 13. fxe4 {[%clk 0:02:53]}  Be6 {[%clk 0:02:55]} 14. Kh1 {[%clk 0:02:42]}  Re8 {[%clk 0:02:54]} 15. h3 {[%clk 0:02:35]}  Bf8 {[%clk 0:02:53]} 16. Nf4 {[%clk 0:02:34]}  Bc4 {[%clk 0:02:48]} 17. Rf2 {[%clk 0:02:25]}  c5 {[%clk 0:02:47]} 18. d5 {[%clk 0:02:16]}  Nbd7 {[%clk 0:02:42]} 19. b3 {[%clk 0:02:10]}  Ba6 {[%clk 0:02:42]} 20. Bb2 {[%clk 0:02:04]}  Ne5 {[%clk 0:02:41]} 21. g4 {[%clk 0:01:57]}  g5 {[%clk 0:02:32]} 22. Nh5 {[%clk 0:01:25]}  Nxh5 {[%clk 0:02:32]} 23. gxh5 {[%clk 0:01:26]}  Nd3 {[%clk 0:02:32]} 24. Rd2 {[%clk 0:01:11]}  Nxb2 {[%clk 0:02:32]} 25. Rxb2 {[%clk 0:01:12]}  Bg7 {[%clk 0:02:33]} 26. Rc2 {[%clk 0:01:12]}  Qa5 {[%clk 0:02:32]} 27. Rac1 {[%clk 0:01:11]}  Qxa3 {[%clk 0:02:29]} 28. Qf3 {[%clk 0:00:51]}  Qxb3 {[%clk 0:02:24]} 29. d6 {[%clk 0:00:48]}  Rad8 {[%clk 0:02:22]} 30. e5 {[%clk 0:00:41]}  Rxe5 {[%clk 0:02:18]} 31. Qg3 {[%clk 0:00:26]}  Rxd6 {[%clk 0:02:13]} 32. Ne4 {[%clk 0:00:23]}  Qxg3 {[%clk 0:02:12]} 33. Nxg3 {[%clk 0:00:23]}  h6 {[%clk 0:02:12]} 34. Ne4 {[%clk 0:00:19]}  Rde6 {[%clk 0:02:10]} 35. Nxc5 {[%clk 0:00:19]}  Re1+ {[%clk 0:02:10]} 36. Rxe1 {[%clk 0:00:18]}  Rxe1+ {[%clk 0:02:11]} 37. Kh2 {[%clk 0:00:16]}  Be5# {[%clk 0:02:12]} 0-1


[Site "https://www.chess.com"]

[Event "Titled Tuesday Blitz March 07 Late 2023"]
[White "Kovacs, Klara"]
[Black "Remolar Gallen, Jose"]
[WhiteFideId "733210"]
[BlackFideId "2215187"]
[WhiteElo "2179"]
[BlackElo "2223"]
[Result "1-0"]
[Round "04"]
[TimeControl "180+2"]
[Date "2023.03.07"]
[WhiteClock "0:00:26"]
[BlackClock "0:00:08"]

1. d4 {[%clk 0:02:49]}  Nf6 {[%clk 0:02:58]} 2. Nf3 {[%clk 0:02:48]}  g6 {[%clk 0:02:58]} 3. c4 {[%clk 0:02:44]}  d6 {[%clk 0:02:57]} 4. Nc3 {[%clk 0:02:42]}  Bg7 {[%clk 0:02:57]} 5. g3 {[%clk 0:02:42]}  O-O {[%clk 0:02:58]} 6. Bg2 {[%clk 0:02:42]}  Nc6 {[%clk 0:02:58]} 7. O-O {[%clk 0:02:42]}  a6 {[%clk 0:02:58]} 8. Bg5 {[%clk 0:02:42]}  h6 {[%clk 0:02:58]} 9. Bf4 {[%clk 0:02:42]}  Bf5 {[%clk 0:02:53]} 10. h3 {[%clk 0:02:36]}  g5 {[%clk 0:02:50]} 11. Be3 {[%clk 0:02:36]}  g4 {[%clk 0:02:49]} 12. Nh4 {[%clk 0:02:29]}  Bd7 {[%clk 0:02:43]} 13. hxg4 {[%clk 0:02:28]}  Nxg4 {[%clk 0:02:44]} 14. Qd3 {[%clk 0:02:15]}  Nxe3 {[%clk 0:02:35]} 15. fxe3 {[%clk 0:02:16]}  e5 {[%clk 0:02:33]} 16. Nf5 {[%clk 0:02:12]}  Bxf5 {[%clk 0:02:29]} 17. Rxf5 {[%clk 0:02:09]}  exd4 {[%clk 0:02:28]} 18. Nd5 {[%clk 0:02:09]}  Ne5 {[%clk 0:02:23]} 19. Qe4 {[%clk 0:02:06]}  c6 {[%clk 0:02:06]} 20. Nf4 {[%clk 0:01:58]}  Re8 {[%clk 0:02:02]} 21. Nh5 {[%clk 0:01:56]}  Ng6 {[%clk 0:01:49]} 22. Qg4 {[%clk 0:01:52]}  Rxe3 {[%clk 0:01:37]} 23. Raf1 {[%clk 0:01:38]}  Re7 {[%clk 0:01:20]} 24. Be4 {[%clk 0:01:21]}  Rxe4 {[%clk 0:00:37]} 25. Qxe4 {[%clk 0:01:20]}  Be5 {[%clk 0:00:37]} 26. Qg4 {[%clk 0:00:40]}  Qe7 {[%clk 0:00:27]} 27. Rxf7 {[%clk 0:00:39]}  Qxf7 {[%clk 0:00:28]} 28. Rxf7 {[%clk 0:00:39]}  Kxf7 {[%clk 0:00:29]} 29. Qf5+ {[%clk 0:00:39]}  Ke7 {[%clk 0:00:28]} 30. Qxg6 {[%clk 0:00:39]}  Rf8 {[%clk 0:00:29]} 31. Qxh6 {[%clk 0:00:35]}  b5 {[%clk 0:00:29]} 32. cxb5 {[%clk 0:00:34]}  axb5 {[%clk 0:00:30]} 33. Qg5+ {[%clk 0:00:33]}  Ke6 {[%clk 0:00:30]} 34. Qg6+ {[%clk 0:00:33]}  Ke7 {[%clk 0:00:31]} 35. Qe4 {[%clk 0:00:33]}  Kd7 {[%clk 0:00:27]} 36. g4 {[%clk 0:00:32]}  b4 {[%clk 0:00:18]} 37. g5 {[%clk 0:00:32]}  Rg8 {[%clk 0:00:17]} 38. g6 {[%clk 0:00:31]}  Ke6 {[%clk 0:00:16]} 39. Qg4+ {[%clk 0:00:30]}  Kd5 {[%clk 0:00:16]} 40. Qf5 {[%clk 0:00:30]}  Rh8 {[%clk 0:00:08]} 41. g7 {[%clk 0:00:26]} 1-0


[Site "https://www.chess.com"]

[Event "Titled Tuesday Blitz March 07 Late 2023"]
[White "Needleman, Alejandro"]
[Black "Sokolin, Leonid"]
[WhiteFideId "100730"]
[BlackFideId "2009161"]
[WhiteElo "2230"]
[BlackElo "2394"]
[Result "0-1"]
[Round "04"]
[TimeControl "180+2"]
[Date "2023.03.07"]
[WhiteClock "0:01:01"]
[BlackClock "0:00:56"]

1. e4 {[%clk 0:03:00]}  c5 {[%clk 0:02:47]} 2. Nf3 {[%clk 0:03:00]}  Nc6 {[%clk 0:02:47]} 3. d4 {[%clk 0:03:00]}  cxd4 {[%clk 0:02:47]} 4. Nxd4 {[%clk 0:03:01]}  e5 {[%clk 0:02:46]} 5. Nb5 {[%clk 0:03:00]}  d6 {[%clk 0:02:43]} 6. N1c3 {[%clk 0:02:59]}  a6 {[%clk 0:02:42]} 7. Na3 {[%clk 0:02:59]}  Be6 {[%clk 0:02:41]} 8. Nc4 {[%clk 0:02:59]}  Rb8 {[%clk 0:02:40]} 9. Ne3 {[%clk 0:02:55]}  Nf6 {[%clk 0:02:37]} 10. Ned5 {[%clk 0:02:52]}  Bxd5 {[%clk 0:02:30]} 11. exd5 {[%clk 0:02:51]}  Ne7 {[%clk 0:02:21]} 12. Bg5 {[%clk 0:02:50]}  Qa5 {[%clk 0:02:21]} 13. Bxf6 {[%clk 0:02:44]}  gxf6 {[%clk 0:02:20]} 14. Bc4 {[%clk 0:02:34]}  Rc8 {[%clk 0:02:11]} 15. Qd3 {[%clk 0:02:34]}  f5 {[%clk 0:02:07]} 16. O-O {[%clk 0:02:28]}  Bg7 {[%clk 0:01:57]} 17. Rae1 {[%clk 0:02:23]}  O-O {[%clk 0:01:50]} 18. Bb3 {[%clk 0:02:15]}  Qc5 {[%clk 0:01:32]} 19. Kh1 {[%clk 0:02:13]}  e4 {[%clk 0:01:22]} 20. Nxe4 {[%clk 0:01:39]}  fxe4 {[%clk 0:01:21]} 21. Rxe4 {[%clk 0:01:33]}  Ng6 {[%clk 0:01:20]} 22. c3 {[%clk 0:01:33]}  Rce8 {[%clk 0:01:18]} 23. Rg4 {[%clk 0:01:29]}  Ne5 {[%clk 0:01:14]} 24. Rxg7+ {[%clk 0:01:21]}  Kxg7 {[%clk 0:01:13]} 25. Qg3+ {[%clk 0:01:21]}  Ng6 {[%clk 0:01:06]} 26. h4 {[%clk 0:01:21]}  Re4 {[%clk 0:00:58]} 27. f4 {[%clk 0:01:10]}  Qe3 {[%clk 0:00:58]} 28. Rf3 {[%clk 0:01:08]}  Qe1+ {[%clk 0:00:57]} 29. Qxe1 {[%clk 0:01:04]}  Rxe1+ {[%clk 0:00:57]} 30. Kh2 {[%clk 0:01:05]}  Nxh4 {[%clk 0:00:57]} 31. Re3 {[%clk 0:01:01]}  Rxe3 {[%clk 0:00:56]} 0-1


[Site "https://www.chess.com"]

[Event "Titled Tuesday Blitz March 07 Late 2023"]
[White "Vifleemskaia, Svetlana"]
[Black "Kaplan, Avi Harrison"]
[WhiteFideId "4129490"]
[BlackFideId "30934559"]
[WhiteElo "1930"]
[BlackElo "1983"]
[Result "0-1"]
[Round "04"]
[TimeControl "180+2"]
[Date "2023.03.07"]
[WhiteClock "0:00:14"]
[BlackClock "0:00:04"]

1. d4 {[%clk 0:03:00]}  Nf6 {[%clk 0:02:58]} 2. c4 {[%clk 0:03:00]}  a6 {[%clk 0:02:59]} 3. Nc3 {[%clk 0:03:00]}  b5 {[%clk 0:03:00]} 4. cxb5 {[%clk 0:03:00]}  axb5 {[%clk 0:03:00]} 5. Nxb5 {[%clk 0:02:55]}  e5 {[%clk 0:03:01]} 6. e3 {[%clk 0:02:47]}  Ne4 {[%clk 0:02:46]} 7. Bd3 {[%clk 0:02:41]}  Bb4+ {[%clk 0:01:50]} 8. Kf1 {[%clk 0:02:39]}  d5 {[%clk 0:01:38]} 9. dxe5 {[%clk 0:02:22]}  O-O {[%clk 0:01:29]} 10. Nf3 {[%clk 0:02:05]}  Nc6 {[%clk 0:01:13]} 11. Nbd4 {[%clk 0:01:57]}  Qe8 {[%clk 0:00:39]} 12. Nxc6 {[%clk 0:01:49]}  Qxc6 {[%clk 0:00:40]} 13. Qc2 {[%clk 0:01:46]}  Qe6 {[%clk 0:00:25]} 14. b3 {[%clk 0:01:03]}  f6 {[%clk 0:00:23]} 15. Bb2 {[%clk 0:01:02]}  fxe5 {[%clk 0:00:22]} 16. Bxe5 {[%clk 0:00:59]}  Rxf3 {[%clk 0:00:21]} 17. Bxe4 {[%clk 0:00:54]}  dxe4 {[%clk 0:00:16]} 18. Qxe4 {[%clk 0:00:53]}  Ba6+ {[%clk 0:00:09]} 19. Kg1 {[%clk 0:00:51]}  Re8 {[%clk 0:00:07]} 20. gxf3 {[%clk 0:00:46]}  Qxe5 {[%clk 0:00:07]} 21. Qxb4 {[%clk 0:00:44]}  Re6 {[%clk 0:00:03]} 22. Rd1 {[%clk 0:00:29]}  Rg6+ {[%clk 0:00:03]} 23. Qg4 {[%clk 0:00:29]}  Rxg4+ {[%clk 0:00:04]} 24. fxg4 {[%clk 0:00:30]}  Qe4 {[%clk 0:00:04]} 25. h3 {[%clk 0:00:28]}  Bb7 {[%clk 0:00:02]} 26. Rh2 {[%clk 0:00:28]}  Qf3 {[%clk 0:00:02]} 27. Rd4 {[%clk 0:00:26]}  Qe2 {[%clk 0:00:02]} 28. e4 {[%clk 0:00:19]}  Qe1+ {[%clk 0:00:02]} 29. Kg2 {[%clk 0:00:20]}  Bxe4+ {[%clk 0:00:03]} 30. Kg3 {[%clk 0:00:20]}  Qg1+ {[%clk 0:00:03]} 31. Kh4 {[%clk 0:00:19]}  Qxh2 {[%clk 0:00:04]} 32. Rxe4 {[%clk 0:00:20]}  Qxf2+ {[%clk 0:00:04]} 33. Kh5 {[%clk 0:00:19]}  Qf7+ {[%clk 0:00:05]} 34. Kh4 {[%clk 0:00:18]}  Qf2+ {[%clk 0:00:05]} 35. Kh5 {[%clk 0:00:19]}  g6+ {[%clk 0:00:05]} 36. Kh6 {[%clk 0:00:18]}  Qd2+ {[%clk 0:00:05]} 37. g5 {[%clk 0:00:17]}  Qd7 {[%clk 0:00:05]} 38. Rh4 {[%clk 0:00:14]}  Qg7# {[%clk 0:00:04]} 0-1


[Site "https://www.chess.com"]

[Event "Titled Tuesday Blitz March 07 Late 2023"]
[White "Lacasa Diaz, Jose Antonio"]
[Black "Grycel, Kamil"]
[WhiteFideId "2203375"]
[BlackFideId "1115499"]
[WhiteElo "2338"]
[BlackElo "2507"]
[Result "1-0"]
[Round "04"]
[TimeControl "180+2"]
[Date "2023.03.07"]
[WhiteClock "0:00:14"]
[BlackClock "0:00:07"]

1. e4 {[%clk 0:03:00]}  b6 {[%clk 0:03:00]} 2. d4 {[%clk 0:03:00]}  Bb7 {[%clk 0:03:00]} 3. Bd3 {[%clk 0:03:01]}  Nf6 {[%clk 0:03:00]} 4. Nc3 {[%clk 0:02:59]}  e6 {[%clk 0:02:58]} 5. Nge2 {[%clk 0:02:58]}  d5 {[%clk 0:02:58]} 6. e5 {[%clk 0:02:55]}  Ng8 {[%clk 0:02:58]} 7. Nb1 {[%clk 0:02:47]}  c5 {[%clk 0:02:57]} 8. c3 {[%clk 0:02:47]}  Nc6 {[%clk 0:02:37]} 9. a3 {[%clk 0:02:47]}  Nge7 {[%clk 0:02:24]} 10. O-O {[%clk 0:02:39]}  a5 {[%clk 0:02:13]} 11. Nd2 {[%clk 0:02:35]}  cxd4 {[%clk 0:02:04]} 12. cxd4 {[%clk 0:02:34]}  Ng6 {[%clk 0:02:04]} 13. Nf3 {[%clk 0:02:29]}  Be7 {[%clk 0:02:04]} 14. g3 {[%clk 0:02:24]}  O-O {[%clk 0:02:03]} 15. h4 {[%clk 0:02:24]}  f6 {[%clk 0:01:59]} 16. h5 {[%clk 0:02:11]}  fxe5 {[%clk 0:01:47]} 17. hxg6 {[%clk 0:02:04]}  e4 {[%clk 0:01:41]} 18. gxh7+ {[%clk 0:01:59]}  Kxh7 {[%clk 0:01:39]} 19. Nf4 {[%clk 0:01:49]}  Rxf4 {[%clk 0:01:13]} 20. Bxf4 {[%clk 0:01:47]}  exd3 {[%clk 0:01:10]} 21. Kg2 {[%clk 0:01:21]}  Ba6 {[%clk 0:01:03]} 22. Rh1+ {[%clk 0:01:18]}  Kg8 {[%clk 0:01:03]} 23. Rc1 {[%clk 0:01:05]}  Rc8 {[%clk 0:01:03]} 24. Rxc6 {[%clk 0:01:03]}  Rxc6 {[%clk 0:01:01]} 25. Ne5 {[%clk 0:01:03]}  Qe8 {[%clk 0:00:49]} 26. Nxc6 {[%clk 0:00:57]}  Qxc6 {[%clk 0:00:50]} 27. Qh5 {[%clk 0:00:53]}  Bf6 {[%clk 0:00:45]} 28. Be5 {[%clk 0:00:35]}  Bxe5 {[%clk 0:00:40]} 29. Qxe5 {[%clk 0:00:29]}  d2 {[%clk 0:00:37]} 30. Rd1 {[%clk 0:00:24]}  Bd3 {[%clk 0:00:30]} 31. Rxd2 {[%clk 0:00:19]}  Bf5 {[%clk 0:00:30]} 32. f3 {[%clk 0:00:17]}  Qc1 {[%clk 0:00:30]} 33. Qe2 {[%clk 0:00:17]}  Qb1 {[%clk 0:00:29]} 34. g4 {[%clk 0:00:17]}  Bg6 {[%clk 0:00:29]} 35. Qxe6+ {[%clk 0:00:17]}  Bf7 {[%clk 0:00:29]} 36. Qe2 {[%clk 0:00:18]}  Qc1 {[%clk 0:00:27]} 37. Qf2 {[%clk 0:00:18]}  Qb1 {[%clk 0:00:27]} 38. Re2 {[%clk 0:00:18]}  Qd3 {[%clk 0:00:26]} 39. Rd2 {[%clk 0:00:18]}  Qb1 {[%clk 0:00:26]} 40. Re2 {[%clk 0:00:19]}  Qd3 {[%clk 0:00:26]} 41. Qe3 {[%clk 0:00:19]}  Qd1 {[%clk 0:00:26]} 42. Qd2 {[%clk 0:00:19]}  Qb1 {[%clk 0:00:26]} 43. Re5 {[%clk 0:00:19]}  a4 {[%clk 0:00:25]} 44. Qe2 {[%clk 0:00:18]}  Qc1 {[%clk 0:00:23]} 45. Re3 {[%clk 0:00:17]}  Qb1 {[%clk 0:00:23]} 46. Rc3 {[%clk 0:00:17]}  Bg6 {[%clk 0:00:19]} 47. Rc8+ {[%clk 0:00:17]}  Kh7 {[%clk 0:00:20]} 48. Qf2 {[%clk 0:00:16]}  Qe1 {[%clk 0:00:07]} 49. Qxe1 {[%clk 0:00:14]} 1-0


[Site "https://www.chess.com"]

[Event "Titled Tuesday Blitz March 07 Late 2023"]
[White "Quinones Garcia, Santiago"]
[Black "Pert, Richard G"]
[WhiteFideId "4408497"]
[BlackFideId "404748"]
[WhiteElo "2263"]
[BlackElo "2441"]
[Result "0-1"]
[Round "04"]
[TimeControl "180+2"]
[Date "2023.03.07"]
[WhiteClock "0:00:01"]
[BlackClock "0:00:10"]

1. d4 {[%clk 0:03:00]}  Nf6 {[%clk 0:02:56]} 2. c3 {[%clk 0:03:01]}  g6 {[%clk 0:02:53]} 3. Bf4 {[%clk 0:03:01]}  Bg7 {[%clk 0:02:54]} 4. e3 {[%clk 0:02:57]}  d6 {[%clk 0:02:54]} 5. h3 {[%clk 0:02:58]}  O-O {[%clk 0:02:52]} 6. Nf3 {[%clk 0:02:58]}  Nc6 {[%clk 0:02:48]} 7. Nbd2 {[%clk 0:02:59]}  Nd7 {[%clk 0:02:47]} 8. Be2 {[%clk 0:02:58]}  e5 {[%clk 0:02:46]} 9. Bh2 {[%clk 0:02:58]}  Qe7 {[%clk 0:02:43]} 10. O-O {[%clk 0:02:58]}  h5 {[%clk 0:02:26]} 11. e4 {[%clk 0:02:48]}  exd4 {[%clk 0:02:21]} 12. cxd4 {[%clk 0:02:48]}  Nxd4 {[%clk 0:02:21]} 13. Nxd4 {[%clk 0:02:40]}  Bxd4 {[%clk 0:02:21]} 14. Qc2 {[%clk 0:02:39]}  Nc5 {[%clk 0:02:16]} 15. Rad1 {[%clk 0:02:36]}  Kh7 {[%clk 0:01:54]} 16. Rfe1 {[%clk 0:02:25]}  Ne6 {[%clk 0:01:40]} 17. Nf3 {[%clk 0:02:03]}  Bg7 {[%clk 0:01:30]} 18. Bd3 {[%clk 0:01:58]}  Ng5 {[%clk 0:01:20]} 19. Nxg5+ {[%clk 0:01:53]}  Qxg5 {[%clk 0:01:20]} 20. f4 {[%clk 0:01:37]}  Qc5+ {[%clk 0:01:15]} 21. Qxc5 {[%clk 0:01:35]}  dxc5 {[%clk 0:01:16]} 22. b3 {[%clk 0:01:29]}  Bd4+ {[%clk 0:01:11]} 23. Kh1 {[%clk 0:01:29]}  f5 {[%clk 0:01:10]} 24. exf5 {[%clk 0:01:23]}  Bxf5 {[%clk 0:01:09]} 25. Bxf5 {[%clk 0:01:21]}  Rxf5 {[%clk 0:01:08]} 26. Re7+ {[%clk 0:01:21]}  Kh6 {[%clk 0:01:06]} 27. Rxc7 {[%clk 0:01:20]}  Re8 {[%clk 0:00:57]} 28. Rxb7 {[%clk 0:01:02]}  a5 {[%clk 0:00:47]} 29. g4 {[%clk 0:00:51]}  hxg4 {[%clk 0:00:37]} 30. hxg4 {[%clk 0:00:52]}  Rd5 {[%clk 0:00:37]} 31. Rd2 {[%clk 0:00:29]}  Re3 {[%clk 0:00:33]} 32. Kg2 {[%clk 0:00:18]}  Rd8 {[%clk 0:00:20]} 33. Bg3 {[%clk 0:00:16]}  a4 {[%clk 0:00:17]} 34. bxa4 {[%clk 0:00:15]}  c4 {[%clk 0:00:17]} 35. Rd1 {[%clk 0:00:09]}  Re2+ {[%clk 0:00:16]} 36. Kh3 {[%clk 0:00:09]}  g5 {[%clk 0:00:15]} 37. fxg5+ {[%clk 0:00:07]}  Kg6 {[%clk 0:00:14]} 38. Bh4 {[%clk 0:00:08]}  c3 {[%clk 0:00:13]} 39. a5 {[%clk 0:00:04]}  c2 {[%clk 0:00:13]} 40. Rc1 {[%clk 0:00:04]}  Be3 {[%clk 0:00:13]} 41. Rxc2 {[%clk 0:00:01]}  Rxc2 {[%clk 0:00:13]} 42. a6 {[%clk 0:00:01]}  Rxa2 {[%clk 0:00:12]} 43. Bg3 {[%clk 0:00:02]}  Rxa6 {[%clk 0:00:11]} 44. Re7 {[%clk 0:00:01]}  Rd3 {[%clk 0:00:10]} 45. Kh4 {[%clk 0:00:01]}  Bxg5+ {[%clk 0:00:10]} 46. Kh3 {[%clk 0:00:01]}  Bxe7 {[%clk 0:00:10]} 0-1


[Site "https://www.chess.com"]

[Event "Titled Tuesday Blitz March 07 Late 2023"]
[White "Gireman, Ja"]
[Black "Uzcategui Rodriguez, Alejandro"]
[WhiteFideId "5043794"]
[BlackFideId "3903400"]
[WhiteElo "2153"]
[BlackElo "2249"]
[Result "1-0"]
[Round "04"]
[TimeControl "180+2"]
[Date "2023.03.07"]
[WhiteClock "0:00:19"]
[BlackClock "0:00:08"]

1. e4 {[%clk 0:03:00]}  e6 {[%clk 0:02:58]} 2. d4 {[%clk 0:03:00]}  d5 {[%clk 0:02:57]} 3. Nc3 {[%clk 0:03:01]}  Nf6 {[%clk 0:02:56]} 4. Bg5 {[%clk 0:03:00]}  dxe4 {[%clk 0:02:55]} 5. Nxe4 {[%clk 0:02:59]}  Be7 {[%clk 0:02:54]} 6. Bxf6 {[%clk 0:02:59]}  gxf6 {[%clk 0:02:54]} 7. Nf3 {[%clk 0:03:00]}  a6 {[%clk 0:02:46]} 8. Qd2 {[%clk 0:03:00]}  b5 {[%clk 0:02:43]} 9. O-O-O {[%clk 0:02:59]}  Bb7 {[%clk 0:02:43]} 10. Qe3 {[%clk 0:02:50]}  Nd7 {[%clk 0:02:34]} 11. Be2 {[%clk 0:02:38]}  f5 {[%clk 0:02:32]} 12. Ng3 {[%clk 0:02:34]}  Nf6 {[%clk 0:02:32]} 13. Kb1 {[%clk 0:02:30]}  Qd6 {[%clk 0:02:13]} 14. Ne5 {[%clk 0:02:25]}  Nd5 {[%clk 0:02:10]} 15. Qh6 {[%clk 0:02:16]}  Bf6 {[%clk 0:01:50]} 16. Bh5 {[%clk 0:02:16]}  Bxe5 {[%clk 0:01:39]} 17. dxe5 {[%clk 0:02:17]}  Qe7 {[%clk 0:01:32]} 18. Qg7 {[%clk 0:02:00]}  Qf8 {[%clk 0:01:24]} 19. Qg5 {[%clk 0:01:32]}  Qe7 {[%clk 0:01:21]} 20. Qd2 {[%clk 0:01:27]}  O-O-O {[%clk 0:01:19]} 21. Bf3 {[%clk 0:01:26]}  Nb6 {[%clk 0:01:16]} 22. Qe2 {[%clk 0:01:25]}  Nc4 {[%clk 0:01:05]} 23. Bxb7+ {[%clk 0:01:22]}  Kxb7 {[%clk 0:01:06]} 24. Qf3+ {[%clk 0:01:22]}  Kb8 {[%clk 0:01:06]} 25. Qc6 {[%clk 0:01:15]}  Nb6 {[%clk 0:00:44]} 26. a3 {[%clk 0:01:11]}  Rxd1+ {[%clk 0:00:43]} 27. Rxd1 {[%clk 0:01:11]}  Rd8 {[%clk 0:00:44]} 28. Qf3 {[%clk 0:01:06]}  Rxd1+ {[%clk 0:00:39]} 29. Qxd1 {[%clk 0:01:06]}  Qd7 {[%clk 0:00:38]} 30. Qxd7 {[%clk 0:01:02]}  Nxd7 {[%clk 0:00:37]} 31. f4 {[%clk 0:01:03]}  Kb7 {[%clk 0:00:38]} 32. Nh5 {[%clk 0:01:01]}  Nb6 {[%clk 0:00:34]} 33. Nf6 {[%clk 0:01:00]}  h6 {[%clk 0:00:33]} 34. Ng8 {[%clk 0:00:53]}  Nd5 {[%clk 0:00:29]} 35. Nxh6 {[%clk 0:00:53]}  Nxf4 {[%clk 0:00:29]} 36. g3 {[%clk 0:00:49]}  Ng6 {[%clk 0:00:29]} 37. Nxf7 {[%clk 0:00:50]}  Kc6 {[%clk 0:00:29]} 38. h4 {[%clk 0:00:49]}  Kd5 {[%clk 0:00:28]} 39. h5 {[%clk 0:00:47]}  Nxe5 {[%clk 0:00:25]} 40. Ng5 {[%clk 0:00:33]}  Ng4 {[%clk 0:00:17]} 41. Nf7 {[%clk 0:00:33]}  e5 {[%clk 0:00:14]} 42. h6 {[%clk 0:00:33]}  Nxh6 {[%clk 0:00:05]} 43. Nxh6 {[%clk 0:00:33]}  f4 {[%clk 0:00:06]} 44. gxf4 {[%clk 0:00:32]}  exf4 {[%clk 0:00:07]} 45. Kc1 {[%clk 0:00:32]}  Ke4 {[%clk 0:00:08]} 46. Kd2 {[%clk 0:00:32]}  Kf3 {[%clk 0:00:08]} 47. Nf5 {[%clk 0:00:30]}  Kg2 {[%clk 0:00:08]} 48. Ke1 {[%clk 0:00:25]}  f3 {[%clk 0:00:08]} 49. Ne3+ {[%clk 0:00:25]}  Kg1 {[%clk 0:00:08]} 50. Nd1 {[%clk 0:00:24]}  Kg2 {[%clk 0:00:07]} 51. Nf2 {[%clk 0:00:24]}  c5 {[%clk 0:00:08]} 52. b3 {[%clk 0:00:19]}  Kg1 {[%clk 0:00:06]} 53. b4 {[%clk 0:00:18]}  c4 {[%clk 0:00:06]} 54. Ne4 {[%clk 0:00:17]}  Kg2 {[%clk 0:00:06]} 55. c3 {[%clk 0:00:17]}  Kg1 {[%clk 0:00:06]} 56. Nd2 {[%clk 0:00:15]}  f2+ {[%clk 0:00:05]} 57. Ke2 {[%clk 0:00:15]}  Kg2 {[%clk 0:00:05]} 58. Nf1 {[%clk 0:00:15]}  Kg1 {[%clk 0:00:06]} 59. Ne3 {[%clk 0:00:16]}  f1=Q+ {[%clk 0:00:03]} 60. Nxf1 {[%clk 0:00:16]}  Kg2 {[%clk 0:00:04]} 61. Ne3+ {[%clk 0:00:17]}  Kg3 {[%clk 0:00:05]} 62. Nxc4 {[%clk 0:00:17]}  bxc4 {[%clk 0:00:06]} 63. a4 {[%clk 0:00:18]}  Kf4 {[%clk 0:00:06]} 64. b5 {[%clk 0:00:18]}  axb5 {[%clk 0:00:06]} 65. a5 {[%clk 0:00:18]}  Ke5 {[%clk 0:00:07]} 66. a6 {[%clk 0:00:19]}  b4 {[%clk 0:00:07]} 67. cxb4 {[%clk 0:00:18]}  c3 {[%clk 0:00:08]} 68. Kd3 {[%clk 0:00:19]}  c2 {[%clk 0:00:08]} 69. Kxc2 {[%clk 0:00:19]} 1-0


[Site "https://www.chess.com"]